fUSD/lending_fUSD_20240718
["ID","MTS","AMOUNT","RATE_DAILY","PERIOD"]
[332562361,1721294046827,-1250.0,0.00043835,120]
[332562362,1721294046861,-1250.0,0.00043835,120]
[332562363,1721294046895,-500.0,0.00043835,120]
[332562364,1721294046929,-500.0,0.00043835,120]
[332562365,1721294046965,-500.0,0.00043835,120]
[332562366,1721294047001,-500.0,0.00043835,120]
[332562367,1721294047036,-500.0,0.00043835,120]
[332562368,1721294047071,-500.0,0.00043835,120]
[332562369,1721294047106,-500.0,0.00043835,120]
[332562370,1721294047142,-500.0,0.00043835,120]
[332562371,1721294047177,-500.0,0.00043835,120]
[332562372,1721294047213,-500.0,0.00043835,120]
[332562373,1721294047248,-500.0,0.00043835,120]
[332562374,1721294047284,-500.0,0.00043835,120]
[332562375,1721294047319,-500.0,0.00043835,120]
[332562376,1721294047355,-500.0,0.00043835,120]
[332562377,1721294047391,-263.98,0.00043835,120]
[332562378,1721294047428,-500.0,0.00043835,120]
[332562379,1721294047465,-500.0,0.00043835,120]
[332562380,1721294047500,-500.0,0.00043835,120]
[332562381,1721294047535,-500.0,0.00043835,120]
[332562382,1721294047568,-500.0,0.00043835,120]
[332562383,1721294047603,-500.0,0.00043835,120]
[332562384,1721294047639,-500.0,0.00043835,120]
[332562385,1721294047675,-500.0,0.00043835,120]
[332562386,1721294047709,-500.0,0.00043835,120]
[332562387,1721294047744,-500.0,0.00043835,120]
[332562388,1721294047780,-3000.0,0.00043835,120]
[332562389,1721294047815,-500.0,0.00043835,120]
[332562390,1721294047851,-3000.0,0.00043835,120]
[332562391,1721294047884,-936.79,0.00043835,30]
[332562392,1721294047919,-500.0,0.00043835,120]
[332562393,1721294048089,500.0,0.0003589,14]
[332562394,1721294048169,185.97209727,0.00036178,14]
[332562395,1721294048212,500.0,0.0003589,14]
[332562396,1721294048262,500.0,0.0003589,14]
[332562397,1721294048315,500.0,0.0003589,14]
[332562398,1721294048355,500.0,0.0003589,14]
[332562399,1721294048395,500.0,0.0003589,14]
[332562400,1721294048433,540.6712,0.0003589,14]
[332562401,1721294048477,500.0,0.0003589,14]
[332562402,1721294048517,500.0,0.0003589,14]
[332562403,1721294048556,13939.90409164,0.00035889,14]
[332562404,1721294048599,326.72,0.0003589,14]
[332562405,1721294048638,500.0,0.0003589,14]
[332562406,1721294048680,648.08339016,0.0003589,14]
[332562407,1721294048724,500.0,0.0003589,14]
[332562408,1721294048767,500.0,0.0003589,14]
[332562409,1721294048808,500.0,0.0003589,14]
[332562410,1721294048847,500.0,0.0003589,14]
[332562411,1721294048890,500.0,0.0003589,14]
[332562412,1721294048933,500.0,0.00036063,14]
[332562413,1721294048986,625.8,0.00036178,14]
[332562414,1721294049120,500.0,0.0003589,14]
[332562415,1721294049165,500.0,0.0003589,14]
[332562416,1721294049229,631.25,0.0003589,14]
[332562417,1721294049290,500.0,0.0003589,14]
[332562418,1721294049342,500.0,0.0003589,14]
[332562419,1721294049386,500.0,0.0003589,14]
[332562420,1721294049448,500.0,0.0003589,14]
[332562421,1721294049532,500.0,0.0003589,14]
[332562422,1721294049577,500.0,0.0003589,14]
[332562423,1721294049616,448.97,0.0003588,10]
[332562424,1721294049656,151.74,0.0003589,14]
[332562425,1721294049694,500.0,0.0003589,14]
[332562426,1721294049732,500.0,0.0003589,14]
[332562427,1721294049768,500.0,0.0003589,14]
[332562428,1721294049805,500.0,0.0003589,14]
[332562429,1721294049843,500.0,0.0003589,14]
[332562430,1721294049884,500.0,0.0003589,14]
[332562431,1721294049926,181.70599883,0.0003589,14]
[332562432,1721294049972,500.0,0.0003589,14]
[332562433,1721294050008,500.0,0.0003589,14]
[332562434,1721294050044,500.0,0.0003589,14]
[332562435,1721294050084,500.0,0.0003589,14]
[332562436,1721294050120,500.0,0.0003589,14]
[332562437,1721294050162,500.0,0.0003589,14]
[332562438,1721294050201,500.0,0.0003589,14]
[332562439,1721294050239,500.0,0.0003589,14]
[332562440,1721294050289,500.0,0.0003589,14]
[332562441,1721294050336,500.0,0.00036063,14]
[332562442,1721294050377,500.0,0.00036178,14]
[332562443,1721294050418,500.0,0.0003589,14]
[332562444,1721294050455,186.98,0.00036178,14]
[332562445,1721294050491,500.0,0.0003589,14]
[332562446,1721294050527,500.0,0.0003589,14]
[332562447,1721294050564,500.0,0.0003589,14]
[332562448,1721294050600,500.0,0.0003589,14]
[332562449,1721294050640,500.0,0.0003589,14]
[332562450,1721294050681,500.0,0.0003589,14]
[332562451,1721294050719,500.0,0.0003589,14]
[332562452,1721294050755,500.0,0.0003589,14]
[332562453,1721294050797,500.0,0.0003589,14]
[332562454,1721294050844,500.0,0.0003589,14]
[332562455,1721294050885,500.0,0.0003589,14]
[332562456,1721294050921,500.0,0.0003589,14]
[332562457,1721294051026,374.14,0.0003588,10]
[332562458,1721294051063,500.0,0.0003589,14]
[332562459,1721294051100,500.0,0.0003589,14]
[332562460,1721294051138,500.0,0.0003589,14]
[332562461,1721294051176,500.0,0.0003589,14]
[332562462,1721294051212,500.0,0.0003589,14]
[332562463,1721294051250,500.0,0.0003589,14]
[332562464,1721294051287,500.0,0.0003589,14]
[332562465,1721294051331,500.0,0.0003589,14]
[332562466,1721294051369,500.0,0.0003589,14]
[332562467,1721294051412,500.0,0.0003589,14]
[332562468,1721294051452,500.0,0.0003589,14]
[332562469,1721294051490,500.0,0.0003589,14]
[332562470,1721294051526,500.0,0.0003589,14]
[332562471,1721294051564,500.0,0.0003589,14]
[332562472,1721294051600,500.0,0.0003589,14]
[332562473,1721294051648,500.0,0.0003589,14]
[332562474,1721294051695,500.0,0.0003589,14]
[332562475,1721294051732,500.0,0.0003589,14]
[332562476,1721294051769,334.85,0.0003589,14]
[332562477,1721294051811,500.0,0.0003589,14]
[332562478,1721294051849,500.0,0.0003589,14]
[332562479,1721294051892,500.0,0.0003589,14]
[332562480,1721294051937,500.0,0.0003589,14]
[332562481,1721294051982,500.0,0.0003589,14]
[332562482,1721294052023,500.0,0.0003589,14]
[332562483,1721294052265,500.0,0.00036063,14]
[332562484,1721294052306,472.72,0.00036178,14]
[332562485,1721294052345,500.0,0.0003589,14]
[332562486,1721294052384,500.0,0.0003589,14]
[332562487,1721294052423,500.0,0.0003589,14]
[332562488,1721294052465,500.0,0.0003589,14]
[332562489,1721294052506,311.79,0.00036076,10]
[332562490,1721294052553,500.0,0.0003589,14]
[332562491,1721294052615,500.0,0.0003589,14]
[332562492,1721294052656,500.0,0.0003589,14]
[332562493,1721294052702,500.0,0.0003589,14]
[332562494,1721294052742,500.0,0.0003589,14]
[332562495,1721294052781,500.0,0.0003589,14]
[332562496,1721294052820,500.0,0.0003589,14]
[332562497,1721294052858,500.0,0.0003589,14]
[332562498,1721294052898,500.0,0.0003589,14]
[332562499,1721294052936,500.0,0.0003589,14]
[332562500,1721294052980,271.69575755,0.0003589,14]
[332562501,1721294053019,500.0,0.0003589,14]
[332562502,1721294053064,538.82,0.0003589,14]
[332562503,1721294053114,500.0,0.0003589,14]
[332562504,1721294053154,500.0,0.0003589,14]
[332562505,1721294053200,500.0,0.0003589,14]
[332562506,1721294053242,500.0,0.0003589,14]
[332562507,1721294053283,500.0,0.0003589,14]
[332562508,1721294053322,500.0,0.0003589,14]
[332562509,1721294053361,165.96,0.0003589,14]
[332562510,1721294053400,500.0,0.0003589,14]
[332562511,1721294053439,500.0,0.0003589,14]
[332562512,1721294053476,500.0,0.0003589,14]
[332562513,1721294053515,500.0,0.0003589,14]
[332562514,1721294053558,500.0,0.0003589,14]
[332562515,1721294053609,500.0,0.0003589,14]
[332562516,1721294053652,561.5290824,0.0003589,14]
[332562517,1721294053692,500.0,0.0003589,14]
[332562518,1721294053735,500.0,0.0003589,14]
[332562519,1721294053776,500.0,0.0003589,14]
[332562520,1721294053816,500.0,0.0003589,14]
[332562521,1721294053862,500.0,0.0003589,14]
[332562522,1721294053905,500.0,0.0003589,14]
[332562523,1721294053942,500.0,0.0003589,14]
[332562524,1721294053984,500.0,0.0003589,14]
[332562525,1721294054028,500.0,0.0003589,14]
[332562526,1721294054066,500.0,0.0003589,14]
[332562527,1721294054103,259.82,0.00036076,10]
[332562528,1721294054139,500.0,0.0003589,14]
[332562529,1721294054180,500.0,0.00041095,14]
[332562530,1721294054221,500.0,0.0003589,14]
[332562531,1721294054262,377.28101204,0.0003589,14]
[332562532,1721294054302,500.0,0.00041095,14]
[332562533,1721294054342,500.0,0.0003589,14]
[332562534,1721294054382,548.6172936,0.00041095,14]
[332562535,1721294054434,500.0,0.0003589,14]
[332562536,1721294054482,500.0,0.0003589,14]
[332562537,1721294054523,500.0,0.0003589,14]
[332562538,1721294054563,500.0,0.0003589,14]
[332562539,1721294054607,176.54,0.0003589,14]
[332562540,1721294054654,500.0,0.0003589,14]
[332562541,1721294054697,500.0,0.0003589,14]
[332562542,1721294054737,500.0,0.0003589,14]
[332562543,1721294054780,500.0,0.0003589,14]
[332562544,1721294054820,500.0,0.0003589,14]
[332562545,1721294054860,500.0,0.0003589,14]
[332562546,1721294054900,342.30004167,0.0003589,14]
[332562547,1721294054945,500.0,0.0003589,14]
[332562548,1721294054991,500.0,0.0003589,14]
[332562549,1721294055038,500.0,0.0003589,14]
[332562550,1721294055076,500.0,0.0003589,14]
[332562551,1721294055113,500.0,0.0003589,14]
[332562552,1721294055153,500.0,0.0003589,14]
[332562553,1721294055193,411.66,0.0003589,14]
[332562554,1721294055234,500.0,0.0003589,14]
[332562555,1721294055277,500.0,0.0003589,14]
[332562556,1721294055320,500.0,0.0003589,14]
[332562557,1721294055363,214.81,0.0003589,14]
[332562558,1721294055413,500.0,0.0003589,14]
[332562559,1721294055457,500.0,0.0003589,14]
[332562560,1721294055495,500.0,0.0003589,14]
[332562561,1721294055533,500.0,0.0003589,14]
[332562562,1721294055571,500.0,0.0003589,14]
[332562563,1721294055611,500.0,0.0003589,14]
[332562564,1721294055651,500.0,0.0003589,14]
[332562565,1721294055689,500.0,0.0003589,14]
[332562566,1721294055729,500.0,0.0003589,14]
[332562567,1721294055770,500.0,0.0003589,14]
[332562568,1721294055820,500.0,0.0003589,14]
[332562569,1721294055861,500.0,0.0003589,14]
[332562570,1721294055910,599.49,0.0003589,14]
[332562571,1721294055954,500.0,0.0003589,14]
[332562572,1721294056002,500.0,0.00036063,14]
[332562573,1721294056046,500.0,0.0003589,14]
[332562574,1721294056090,500.0,0.0003589,14]
[332562575,1721294056134,354.47,0.00038356,120]
[332562576,1721294056179,500.0,0.00036178,14]
[332562577,1721294056226,500.0,0.0003589,14]
[332562578,1721294056271,500.0,0.0003589,14]
[332562579,1721294056314,216.52,0.0003607,10]
[332562580,1721294056355,564.66,0.00036178,14]
[332562581,1721294056399,549.75,0.0003589,14]
[332562582,1721294056472,500.0,0.0003589,14]
[332562583,1721294056520,500.0,0.0003589,14]
[332562584,1721294056579,500.0,0.0003589,14]
[332562585,1721294056629,500.0,0.0003589,14]
[332562586,1721294056672,500.0,0.0003589,14]
[332562587,1721294056715,500.0,0.0003589,14]
[332562588,1721294056759,345.0,0.00036063,14]
[332562589,1721294056802,500.0,0.0003589,14]
[332562590,1721294056849,500.0,0.0003589,14]
[332562591,1721294056891,500.0,0.0003589,14]
[332562592,1721294056935,500.0,0.0003589,14]
[332562593,1721294056991,500.0,0.00037259,10]
[332562594,1721294057740,500.0,0.0003589,14]
[332562595,1721294058054,500.0,0.0003589,14]
[332562596,1721294058279,500.0,0.0003589,14]
[332562597,1721294058331,500.0,0.0003589,14]
[332562598,1721294058380,500.0,0.00038355,10]
[332562599,1721294058645,500.0,0.0003589,14]
[332562600,1721294058883,500.0,0.0003589,14]
[332562601,1721294058936,500.0,0.0003589,14]
[332562602,1721294059173,500.0,0.0003589,14]
[332562603,1721294059218,500.0,0.0003589,14]
[332562604,1721294060041,500.0,0.00039451,10]
[332562605,1721294060508,500.0,0.0003589,14]
[332562606,1721294060970,500.0,0.0003589,14]
[332562607,1721294061320,500.0,0.0003589,14]
[332562608,1721294061657,500.0,0.00040547,10]
[332562609,1721294062361,500.0,0.0003589,14]
[332562610,1721294062626,525.82,0.0003589,14]
[332562611,1721294063287,500.0,0.00041643,30]
[332562612,1721294063384,500.0,0.0003589,14]
[332562613,1721294063823,500.0,0.0003589,14]
[332562614,1721294063898,500.0,0.0003589,14]
[332562615,1721294064164,500.0,0.0003589,14]
[332562616,1721294064226,500.0,0.0003589,14]
[332562617,1721294064451,180.43,0.00036078,10]
[332562618,1721294064570,500.0,0.0003589,14]
[332562619,1721294064847,500.0,0.00036063,14]
[332562620,1721294064888,556.63383465,0.00042191,30]
[332562621,1721294064969,500.0,0.0003589,14]
[332562622,1721294065119,500.0,0.00036178,14]
[332562623,1721294065265,500.0,0.0003589,14]
[332562624,1721294065388,612.49,0.00036178,14]
[332562625,1721294065562,500.0,0.0003589,14]
[332562626,1721294065872,500.0,0.0003589,14]
[332562627,1721294066172,500.0,0.0003589,14]
[332562628,1721294066578,500.0,0.0003589,14]
[332562629,1721294066638,500.0,0.0003589,14]
[332562630,1721294066681,500.0,0.0003589,14]
[332562631,1721294066725,500.0,0.0003589,14]
[332562632,1721294066773,500.0,0.0003589,14]
[332562633,1721294067055,500.0,0.0003589,14]
[332562634,1721294067547,500.0,0.0003589,14]
[332562635,1721294067655,500.0,0.0003589,14]
[332562636,1721294067764,500.0,0.0003589,14]
[332562637,1721294067808,500.0,0.0003589,14]
[332562638,1721294067942,500.0,0.0003589,14]
[332562639,1721294068093,500.0,0.0003589,14]
[332562640,1721294068227,500.0,0.0003589,14]
[332562641,1721294068425,380.56,0.0003589,14]
[332562642,1721294068465,500.0,0.0003589,14]
[332562643,1721294068505,500.0,0.0003589,14]
[332562644,1721294068771,500.0,0.0003589,14]
[332562645,1721294069015,500.0,0.0003589,14]
[332562646,1721294069055,500.0,0.0003589,14]
[332562647,1721294069120,207.49566822,0.0003589,14]
[332562648,1721294069306,500.0,0.0003589,14]
[332562649,1721294069345,500.0,0.0003589,14]
[332562653,1721294099022,-10000.0,0.00043,120]
[332562654,1721294099060,-1500.000001,0.00043835,60]
[332562655,1721294099093,-268.42518862,0.00043846,30]
[332562656,1721294099128,-150.0,0.00043849,30]
[332562657,1721294099162,-57000.54145966,0.00043851,30]
[332562658,1721294099198,-348046.29255456,0.00043851,30]
[332562659,1721294099232,-150.0,0.00043858,30]
[332562660,1721294099265,-150.0,0.00043858,30]
[332562661,1721294099302,-150.0,0.00043873,30]
[332562662,1721294099339,-150.0,0.00043879,30]
[332562663,1721294099373,-156.8886,0.00043888,30]
[332562664,1721294099406,-268.42518862,0.00043893,30]
[332562665,1721294099439,-817.0,0.00043906,120]
[332562666,1721294099472,-150.0,0.0004393,30]
[332562667,1721294099506,-150.0,0.00043936,30]
[332562668,1721294099541,-150.0,0.0004394,30]
[332562669,1721294099580,-268.42518862,0.0004394,30]
[332562670,1721294099616,-151.0,0.00043945,120]
[332562671,1721294099652,-150.0,0.00043962,30]
[332562672,1721294099687,-936.79,0.00043972,30]
[332562673,1721294099723,-150.0,0.00043988,30]
[332562674,1721294099757,-150.0,0.00043988,30]
[332562675,1721294099792,-268.42518862,0.00043988,30]
[332562676,1721294099829,-150.0,0.00044,120]
[332562677,1721294099981,-850.0,0.00044,120]
[332562678,1721294100018,-612.45055444,0.00044,30]
[332562679,1721294100055,-2277.77000851,0.00044,120]
[332562680,1721294100092,-2000.0,0.00044,120]
[332562681,1721294100127,-480.0,0.00044,120]
[332562682,1721294100164,-487.617626,0.00044,57]
[332562683,1721294100200,-150.0,0.00044001,30]
[332562684,1721294100240,-150.0,0.00044013,30]
[332562685,1721294100279,-151.0,0.00044027,120]
[332562686,1721294100320,-268.42518862,0.00044035,30]
[332562687,1721294100361,-1000000.0,0.0004404,30]
[332562688,1721294100402,-150.0,0.00044045,30]
[332562689,1721294100442,-150.0,0.00044062,30]
[332562690,1721294100484,-150.0,0.00044076,30]
[332562691,1721294100520,-268.42518862,0.00044082,30]
[332562692,1721294100557,-2414.85083,0.00044088,30]
[332562693,1721294100594,-150.0,0.00044091,30]
[332562694,1721294100630,-150.0,0.00044103,30]
[332562695,1721294100671,-3000.0,0.00044109,120]
[332562696,1721294100716,-936.79,0.00044109,30]
[332562697,1721294100756,-150.0,0.00044124,30]
[332562698,1721294100794,-268.42518862,0.00044129,30]
[332562699,1721294100831,-150.0,0.0004416,30]
[332562700,1721294100868,-150.0,0.00044169,30]
[332562701,1721294100907,-268.42518862,0.00044176,30]
[332562702,1721294100949,-150.0,0.00044185,30]
[332562703,1721294100987,-150.0,0.00044189,30]
[332562704,1721294101024,-1148.59329664,0.000442,120]
[332562705,1721294101061,-150.0,0.00044218,30]
[332562706,1721294101097,-268.42518862,0.00044223,30]
[332562707,1721294101131,-936.79,0.00044246,30]
[332562708,1721294101170,-150.0,0.00044246,30]
[332562709,1721294101208,-150.0,0.00044246,30]
[332562710,1721294101247,-150.0,0.00044246,30]
[332562711,1721294101284,-150.0,0.00044246,30]
[332562712,1721294101319,-150.0,0.00044246,30]
[332562713,1721294101354,-268.42518862,0.0004427,30]
[332562714,1721294101390,-150.0,0.00044275,30]
[332562715,1721294101425,-2414.85083,0.00044288,30]
[332562716,1721294101463,-150.0,0.00044303,30]
[332562717,1721294101509,-150.0,0.00044308,30]
[332562718,1721294101548,-268.42518862,0.00044317,30]
[332562719,1721294101585,-150.0,0.00044324,30]
[332562720,1721294101620,-150.0,0.00044332,120]
[332562721,1721294101655,-150.0,0.00044333,30]
[332562722,1721294101696,-268.42518862,0.00044364,30]
[332562723,1721294101731,-150.0,0.00044369,30]
[332562724,1721294101764,-2200.0,0.00044383,30]
[332562725,1721294101799,-3000.0,0.00044383,120]
[332562726,1721294101832,-3000.0,0.00044383,120]
[332562727,1721294101865,-936.79,0.00044383,30]
[332562728,1721294101901,-504.38,0.00044384,120]
[332562729,1721294101938,-150.0,0.0004439,30]
[332562730,1721294101977,-150.0,0.00044402,30]
[332562731,1721294102013,-268.42518862,0.00044411,30]
[332562732,1721294102049,-150.0,0.00044417,30]
[332562733,1721294102087,-150.0,0.0004443,30]
[332562734,1721294102121,-348417.88657219,0.0004444,120]
[332562735,1721294102158,-150.0,0.00044448,30]
[332562736,1721294102198,-268.42518862,0.00044458,30]
[332562737,1721294102236,-150.0,0.00044479,30]
[332562738,1721294102275,-2414.85083,0.00044488,30]
[332562739,1721294102313,-150.0,0.00044491,30]
[332562740,1721294102350,-1000.0,0.000445,120]
[332562741,1721294102387,-268.42518862,0.00044505,30]
[332562742,1721294102422,-150.0,0.00044505,30]
[332562743,1721294102462,-150.0,0.00044505,30]
[332562744,1721294102498,-936.79,0.0004452,30]
[332562745,1721294102535,-150.0,0.0004453,30]
[332562746,1721294102578,-268.42518862,0.00044552,30]
[332562747,1721294102614,-150.0,0.00044553,30]
[332562748,1721294102652,-150.0,0.00044557,30]
[332562749,1721294102695,-150.0,0.00044563,30]
[332562750,1721294102735,-151.0,0.00044603,120]
[332562751,1721294102773,-150.0,0.00044614,30]
[332562752,1721294102809,-150.0,0.0004462,30]
[332562753,1721294102846,-150.0,0.00044634,30]
[332562754,1721294102883,-150.0,0.00044634,30]
[332562755,1721294102922,-150.0,0.00044644,30]
[332562756,1721294102967,-1458.33,0.00044657,120]
[332562757,1721294103008,-3000.0,0.00044657,120]
[332562758,1721294103057,-936.79,0.00044657,30]
[332562759,1721294103099,-150.0,0.00044675,30]
[332562760,1721294103144,-150.0,0.00044678,30]
[332562761,1721294103189,-2414.85083,0.00044688,30]
[332562762,1721294103235,-159.86969017,0.00044698,90]
[332562763,1721294103281,-150.0,0.00044712,30]
[332562764,1721294103325,-150.0,0.00044735,30]
[332562765,1721294103371,-150.0,0.00044737,30]
[332562766,1721294103414,-150.0,0.00044757,30]
[332562767,1721294103458,-150.0,0.00044764,30]
[332562768,1721294103501,-150.0,0.0004479,30]
[332562769,1721294103543,-150.0,0.00044793,30]
[332562770,1721294103585,-936.79,0.00044794,30]
[332562771,1721294103627,-150.0,0.00044798,30]
[332562772,1721294103670,-8954.50650012,0.000448,60]
[332562773,1721294103720,-200000.48462575,0.000448,30]
[332562774,1721294103763,-8997.61402561,0.000448,60]
[332562775,1721294103805,-85121.33480381,0.000448,60]
[332562776,1721294103848,-79276.80422231,0.000448,60]
[332562777,1721294103893,-7222.9943945,0.000448,60]
[332562778,1721294103941,-1105.05443139,0.000448,60]
[332562779,1721294103985,-153737.49675836,0.000448,60]
[332562780,1721294104028,-1482.55885412,0.000448,60]
[332562781,1721294104180,-150.0,0.0004485,30]
[332562782,1721294104232,-150.0,0.00044859,30]
[332562783,1721294104278,-150.0,0.00044867,30]
[332562784,1721294104322,-150.0,0.00044871,30]
[332562785,1721294104365,-2016.0,0.000449,30]
[332562786,1721294104408,-150.0,0.00044908,30]
[332562787,1721294104450,-150.0,0.0004492,30]
[332562788,1721294104492,-1489.16411672,0.00044931,30]
[332562789,1721294104533,-3000.0,0.00044931,120]
[332562790,1721294104574,-2811.79166216,0.00044931,120]
[332562791,1721294104615,-936.79,0.00044931,30]
[332562792,1721294104657,-150.0,0.00044945,30]
[332562793,1721294104696,-150.0,0.00044965,30]
[332562794,1721294104737,-150.0,0.00044982,30]
[332562795,1721294104780,-150.0,0.00044985,30]
[332562796,1721294104820,-200.07727421,0.00045,120]
[332562797,1721294104860,-150.0,0.00045,85]
[332562798,1721294104899,-1495.0852801,0.00045,90]
[332562799,1721294104939,-392.60546334,0.00045,45]
[332562800,1721294104978,-197.99651685,0.00045,30]
[332562801,1721294105017,-1334.98449797,0.00045,120]
[332562802,1721294105057,-2849.31159813,0.00045,120]
[332562803,1721294105096,-687.00616142,0.00045,35]
[332562804,1721294105136,-880.31065,0.00045,120]
[332562805,1721294105177,-286.88535079,0.00045,120]
[332562806,1721294105219,-2042.94262361,0.00045,30]
[332562807,1721294105259,-1076.47272006,0.00045,60]
[332562808,1721294105299,-1494.97524596,0.00045,120]
[332562809,1721294105339,-758.6990943,0.00045,120]
[332562810,1721294105380,-412.28662316,0.00045,120]
[332562811,1721294105422,-1000.0,0.00045,120]
[332562812,1721294105460,-2000.0,0.00045,75]
[332562813,1721294105499,-2514.84,0.00045,120]
[332562814,1721294105542,-1240.323,0.00045,120]
[332562815,1721294105582,-2363.0,0.00045,120]
[332562816,1721294105621,-49458.96862279,0.00045,120]
[332562817,1721294105669,-6026.87046959,0.00045,120]
[332562818,1721294105709,-50000.0,0.00045,38]
[332562819,1721294105749,-1000.0,0.00045,120]
[332562820,1721294105787,-1011.51,0.00045,120]
[332562821,1721294105827,-3043.13194445,0.00045,120]
[332562822,1721294105867,-113665.51,0.00045,120]
[332562823,1721294105907,-150.0,0.00045,120]
[332562824,1721294105948,-24707.08512092,0.00045,120]
[332562825,1721294105987,-480.40115347,0.00045,120]
[332562826,1721294106026,-4000.0,0.00045,48]
[332562827,1721294106069,-150.0,0.00045023,30]
[332562828,1721294106107,-150.0,0.00045023,30]
[332562829,1721294106147,-150.0,0.00045023,30]
[332562830,1721294106186,-150.0,0.00045023,30]
[332562831,1721294106227,-150.0,0.00045023,30]
[332562832,1721294106265,-338.0,0.0004504,30]
[332562833,1721294106304,-252.0,0.0004504,30]
[332562834,1721294106341,-200.0,0.0004504,30]
[332562835,1721294106376,-200.0,0.0004504,30]
[332562836,1721294106414,-150.0,0.00045043,30]
[332562837,1721294106452,-936.79,0.00045068,30]
[332562838,1721294106493,-150.0,0.00045072,120]
[332562839,1721294106531,-150.0,0.0004508,30]
[332562840,1721294106569,-150.0,0.00045098,30]
[332562841,1721294106607,-150.0,0.000451,30]
[332562842,1721294106645,-150.0,0.00045104,30]
[332562843,1721294106686,-150.0,0.00045138,30]
[332562844,1721294106727,-949.1237,0.0004514,30]
[332562845,1721294106766,-150.0,0.00045165,30]
[332562846,1721294106806,-150.0,0.00045178,30]
[332562847,1721294106846,-150.0,0.00045195,30]
[332562848,1721294106885,-1642.0,0.000452,35]
[332562849,1721294106924,-214.0,0.000452,30]
[332562850,1721294106966,-311.21574491,0.00045205,30]
[332562851,1721294107008,-500.0,0.00045205,120]
[332562852,1721294107046,-500.0,0.00045205,120]
[332562853,1721294107087,-500.0,0.00045205,120]
[332562854,1721294107127,-500.0,0.00045205,120]
[332562855,1721294107168,-500.0,0.00045205,120]
[332562856,1721294107208,-500.0,0.00045205,120]
[332562857,1721294107246,-500.0,0.00045205,120]
[332562858,1721294107285,-500.0,0.00045205,120]
[332562859,1721294107324,-500.0,0.00045205,120]
[332562860,1721294107366,-500.0,0.00045205,120]
[332562861,1721294107405,-500.0,0.00045205,120]
[332562862,1721294107446,-500.0,0.00045205,120]
[332562863,1721294107486,-500.0,0.00045205,120]